[Event "Titled Tuesday Blitz December 27 Late 2022"]
[White "Vifleemskaia, Svetlana"]
[Black "Sourath Biswas"]
[WhiteFideId "4129490"]
[BlackFideId "35091484"]
[WhiteElo "1971"]
[BlackElo "2281"]
[Result "0-1"]
[Round "01"]
[TimeControl "180+2"]
[Date "2022.12.27"]
[WhiteClock "0:00:05"]
[BlackClock "0:01:20"]

1. d4 {[%clk 0:02:56]}  Nf6 {[%clk 0:02:59]} 2. c4 {[%clk 0:02:56]}  g6 {[%clk 0:03:00]} 3. Nc3 {[%clk 0:02:55]}  Bg7 {[%clk 0:03:00]} 4. e4 {[%clk 0:02:55]}  O-O {[%clk 0:03:01]} 5. Nge2 {[%clk 0:02:56]}  d6 {[%clk 0:03:01]} 6. Ng3 {[%clk 0:02:57]}  e5 {[%clk 0:03:02]} 7. d5 {[%clk 0:02:56]}  c6 {[%clk 0:03:02]} 8. Be2 {[%clk 0:02:57]}  Na6 {[%clk 0:02:56]} 9. O-O {[%clk 0:02:55]}  Nc7 {[%clk 0:02:52]} 10. Be3 {[%clk 0:02:50]}  h5 {[%clk 0:02:49]} 11. Bg5 {[%clk 0:02:46]}  cxd5 {[%clk 0:02:49]} 12. cxd5 {[%clk 0:02:46]}  Qe8 {[%clk 0:02:46]} 13. Qd2 {[%clk 0:02:44]}  Nh7 {[%clk 0:02:45]} 14. Bh6 {[%clk 0:02:31]}  h4 {[%clk 0:02:45]} 15. Nh1 {[%clk 0:02:30]}  f5 {[%clk 0:02:39]} 16. Bxg7 {[%clk 0:02:26]}  Kxg7 {[%clk 0:02:40]} 17. exf5 {[%clk 0:02:24]}  gxf5 {[%clk 0:02:37]} 18. f3 {[%clk 0:02:16]}  Qg6 {[%clk 0:02:32]} 19. Nf2 {[%clk 0:02:15]}  Bd7 {[%clk 0:02:24]} 20. Nh3 {[%clk 0:02:11]}  f4 {[%clk 0:02:23]} 21. Bd3 {[%clk 0:02:07]}  Bf5 {[%clk 0:02:19]} 22. Bxf5 {[%clk 0:02:05]}  Rxf5 {[%clk 0:02:20]} 23. Ne4 {[%clk 0:01:59]}  Rg8 {[%clk 0:02:16]} 24. a4 {[%clk 0:01:56]}  Kh8 {[%clk 0:02:13]} 25. Rf2 {[%clk 0:01:51]}  Rf7 {[%clk 0:02:06]} 26. Rd1 {[%clk 0:01:44]}  Rfg7 {[%clk 0:02:02]} 27. Qb4 {[%clk 0:01:33]}  Ne8 {[%clk 0:02:01]} 28. Rc1 {[%clk 0:01:11]}  Qf5 {[%clk 0:02:00]} 29. Kh1 {[%clk 0:01:05]}  Rg6 {[%clk 0:02:00]} 30. Qa5 {[%clk 0:00:40]}  Nhf6 {[%clk 0:01:37]} 31. Re1 {[%clk 0:00:16]}  Nxe4 {[%clk 0:01:34]} 32. fxe4 {[%clk 0:00:13]}  Qg4 {[%clk 0:01:29]} 33. Qd2 {[%clk 0:00:13]}  Nf6 {[%clk 0:01:24]} 34. Qe2 {[%clk 0:00:10]}  Qxe2 {[%clk 0:01:20]} 35. Rfxe2 {[%clk 0:00:07]}  Ng4 {[%clk 0:01:20]} 36. Kg1 {[%clk 0:00:05]}  Ne3 {[%clk 0:01:20]} 0-1


[Site "https://www.chess.com"]

[Event "Titled Tuesday Blitz December 27 Late 2022"]
[White "Vlassov, Nikolai"]
[Black "Dylag, Emilia"]
[WhiteFideId "4103360"]
[BlackFideId "21805172"]
[WhiteElo "2283"]
[BlackElo "2095"]
[Result "1-0"]
[Round "01"]
[TimeControl "180+2"]
[Date "2022.12.27"]
[WhiteClock "0:00:14"]
[BlackClock "0:00:02"]

1. e4 {[%clk 0:02:58]}  e5 {[%clk 0:02:59]} 2. Bc4 {[%clk 0:02:56]}  Nf6 {[%clk 0:02:57]} 3. d3 {[%clk 0:02:56]}  Bc5 {[%clk 0:02:52]} 4. Nf3 {[%clk 0:02:54]}  d6 {[%clk 0:02:51]} 5. Bg5 {[%clk 0:02:49]}  h6 {[%clk 0:02:50]} 6. Bh4 {[%clk 0:02:39]}  a6 {[%clk 0:02:50]} 7. Nc3 {[%clk 0:02:38]}  Nc6 {[%clk 0:02:48]} 8. Nd5 {[%clk 0:02:35]}  g5 {[%clk 0:02:46]} 9. Nxg5 {[%clk 0:02:35]}  Nxd5 {[%clk 0:02:42]} 10. Qh5 {[%clk 0:02:34]}  Qf6 {[%clk 0:02:31]} 11. Nf3 {[%clk 0:02:29]}  Qg6 {[%clk 0:02:19]} 12. Qxg6 {[%clk 0:02:27]}  fxg6 {[%clk 0:02:20]} 13. Bxd5 {[%clk 0:02:26]}  Bg4 {[%clk 0:02:17]} 14. Bf6 {[%clk 0:02:15]}  Rh7 {[%clk 0:02:09]} 15. c3 {[%clk 0:02:04]}  Ne7 {[%clk 0:02:05]} 16. Bxe7 {[%clk 0:01:58]}  Kxe7 {[%clk 0:02:02]} 17. b4 {[%clk 0:01:36]}  Bb6 {[%clk 0:01:39]} 18. Bxb7 {[%clk 0:01:34]}  Rf8 {[%clk 0:01:38]} 19. Bxa6 {[%clk 0:01:00]}  Bxf3 {[%clk 0:01:27]} 20. gxf3 {[%clk 0:01:00]}  Rxf3 {[%clk 0:01:27]} 21. O-O {[%clk 0:00:49]}  Rhf7 {[%clk 0:01:26]} 22. a4 {[%clk 0:00:46]}  Rxf2 {[%clk 0:01:13]} 23. Rxf2 {[%clk 0:00:46]}  Rxf2 {[%clk 0:01:14]} 24. Kh1 {[%clk 0:00:45]}  Rc2 {[%clk 0:01:11]} 25. a5 {[%clk 0:00:41]}  Ba7 {[%clk 0:01:10]} 26. Bc4 {[%clk 0:00:36]}  Rxc3 {[%clk 0:01:04]} 27. Rf1 {[%clk 0:00:35]}  Rc2 {[%clk 0:00:47]} 28. Rf7+ {[%clk 0:00:34]}  Kd8 {[%clk 0:00:45]} 29. b5 {[%clk 0:00:31]}  Be3 {[%clk 0:00:40]} 30. b6 {[%clk 0:00:25]}  cxb6 {[%clk 0:00:35]} 31. a6 {[%clk 0:00:25]}  b5 {[%clk 0:00:27]} 32. Bxb5 {[%clk 0:00:24]}  Ra2 {[%clk 0:00:25]} 33. Rd7+ {[%clk 0:00:22]}  Kc8 {[%clk 0:00:24]} 34. Rxd6 {[%clk 0:00:22]}  g5 {[%clk 0:00:24]} 35. Rg6 {[%clk 0:00:17]}  h5 {[%clk 0:00:23]} 36. h3 {[%clk 0:00:16]}  Kb8 {[%clk 0:00:16]} 37. Rg7 {[%clk 0:00:16]}  Kc8 {[%clk 0:00:15]} 38. Re7 {[%clk 0:00:12]}  g4 {[%clk 0:00:15]} 39. hxg4 {[%clk 0:00:12]}  hxg4 {[%clk 0:00:16]} 40. Rg7 {[%clk 0:00:12]}  Ra1+ {[%clk 0:00:16]} 41. Kg2 {[%clk 0:00:12]}  Rg1+ {[%clk 0:00:15]} 42. Kh2 {[%clk 0:00:12]}  g3+ {[%clk 0:00:05]} 43. Rxg3 {[%clk 0:00:12]}  Bf4 {[%clk 0:00:06]} 44. Kxg1 {[%clk 0:00:12]}  Bxg3 {[%clk 0:00:06]} 45. Kg2 {[%clk 0:00:12]}  Bf4 {[%clk 0:00:07]} 46. Kf3 {[%clk 0:00:13]}  Kb8 {[%clk 0:00:05]} 47. d4 {[%clk 0:00:13]}  Bh2 {[%clk 0:00:05]} 48. d5 {[%clk 0:00:13]}  Bg1 {[%clk 0:00:03]} 49. Kg4 {[%clk 0:00:13]}  Bc5 {[%clk 0:00:03]} 50. Kf5 {[%clk 0:00:13]}  Bd6 {[%clk 0:00:04]} 51. Ke6 {[%clk 0:00:13]}  Bc7 {[%clk 0:00:03]} 52. d6 {[%clk 0:00:14]}  Bb6 {[%clk 0:00:02]} 53. Kxe5 {[%clk 0:00:14]} 1-0


[Site "https://www.chess.com"]

[Event "Titled Tuesday Blitz December 27 Late 2022"]
[White "White, John S."]
[Black "Fiorito, Joaquin"]
[WhiteFideId "2502348"]
[BlackFideId "180173"]
[WhiteElo "2235"]
[BlackElo "2405"]
[Result "0-1"]
[Round "01"]
[TimeControl "180+2"]
[Date "2022.12.27"]
[WhiteClock "0:00:48"]
[BlackClock "0:00:47"]

1. e4 {[%clk 0:02:55]}  c6 {[%clk 0:02:59]} 2. d4 {[%clk 0:02:52]}  d5 {[%clk 0:02:59]} 3. Nc3 {[%clk 0:02:51]}  dxe4 {[%clk 0:02:58]} 4. Nxe4 {[%clk 0:02:51]}  Bf5 {[%clk 0:02:56]} 5. Nc5 {[%clk 0:02:49]}  b6 {[%clk 0:02:20]} 6. Nb3 {[%clk 0:02:48]}  e6 {[%clk 0:02:19]} 7. Nf3 {[%clk 0:02:46]}  Nf6 {[%clk 0:02:16]} 8. Bf4 {[%clk 0:02:43]}  Bd6 {[%clk 0:02:12]} 9. Bxd6 {[%clk 0:02:41]}  Qxd6 {[%clk 0:02:13]} 10. Bd3 {[%clk 0:02:39]}  Bg4 {[%clk 0:02:12]} 11. O-O {[%clk 0:02:33]}  O-O {[%clk 0:02:11]} 12. h3 {[%clk 0:02:30]}  Bh5 {[%clk 0:02:11]} 13. Re1 {[%clk 0:02:23]}  Nbd7 {[%clk 0:02:09]} 14. Be2 {[%clk 0:02:18]}  Rad8 {[%clk 0:02:05]} 15. c3 {[%clk 0:02:08]}  Qc7 {[%clk 0:02:03]} 16. Ne5 {[%clk 0:01:57]}  Nxe5 {[%clk 0:01:50]} 17. Bxh5 {[%clk 0:01:55]}  Nc4 {[%clk 0:01:35]} 18. Rb1 {[%clk 0:01:43]}  c5 {[%clk 0:01:33]} 19. Qe2 {[%clk 0:01:30]}  cxd4 {[%clk 0:01:04]} 20. Nxd4 {[%clk 0:01:25]}  e5 {[%clk 0:00:59]} 21. Nb5 {[%clk 0:01:13]}  Qc5 {[%clk 0:00:59]} 22. a4 {[%clk 0:01:04]}  Rd2 {[%clk 0:00:47]} 23. Qf3 {[%clk 0:01:01]}  Nxh5 {[%clk 0:00:46]} 24. Qxh5 {[%clk 0:00:59]}  Qxf2+ {[%clk 0:00:46]} 25. Kh1 {[%clk 0:00:48]}  Qxg2# {[%clk 0:00:47]} 0-1


[Site "https://www.chess.com"]

[Event "Titled Tuesday Blitz December 27 Late 2022"]
[White "Wieczorek, Oskar"]
[Black "Rosenberg, Evan S"]
[WhiteFideId "1133950"]
[BlackFideId "2019299"]
[WhiteElo "2512"]
[BlackElo "1956"]
[Result "0-1"]
[Round "01"]
[TimeControl "180+2"]
[Date "2022.12.27"]
[WhiteClock "0:00:07"]
[BlackClock "0:00:08"]

1. e4 {[%clk 0:02:58]}  e5 {[%clk 0:02:56]} 2. Nf3 {[%clk 0:02:58]}  Nc6 {[%clk 0:02:57]} 3. Nc3 {[%clk 0:02:38]}  Nf6 {[%clk 0:02:57]} 4. h3 {[%clk 0:02:38]}  d5 {[%clk 0:02:56]} 5. exd5 {[%clk 0:02:38]}  Nxd5 {[%clk 0:02:57]} 6. Bb5 {[%clk 0:02:39]}  Nxc3 {[%clk 0:02:55]} 7. bxc3 {[%clk 0:02:40]}  Bd6 {[%clk 0:02:54]} 8. O-O {[%clk 0:02:40]}  O-O {[%clk 0:02:52]} 9. d4 {[%clk 0:02:41]}  Bf5 {[%clk 0:02:49]} 10. Bxc6 {[%clk 0:02:33]}  bxc6 {[%clk 0:02:49]} 11. dxe5 {[%clk 0:02:34]}  Bc5 {[%clk 0:02:42]} 12. Nd4 {[%clk 0:02:34]}  Be4 {[%clk 0:02:37]} 13. Be3 {[%clk 0:02:13]}  Bb6 {[%clk 0:02:31]} 14. Qg4 {[%clk 0:02:10]}  Qd5 {[%clk 0:02:10]} 15. Qg3 {[%clk 0:01:20]}  Rae8 {[%clk 0:01:54]} 16. f4 {[%clk 0:01:08]}  c5 {[%clk 0:01:40]} 17. Nf3 {[%clk 0:00:51]}  Bxc2 {[%clk 0:01:26]} 18. Nd2 {[%clk 0:00:51]}  Bf5 {[%clk 0:01:22]} 19. Qf2 {[%clk 0:00:50]}  c4 {[%clk 0:01:18]} 20. Nf3 {[%clk 0:00:45]}  Bd3 {[%clk 0:01:17]} 21. Rfe1 {[%clk 0:00:45]}  f6 {[%clk 0:01:16]} 22. Bxb6 {[%clk 0:00:43]}  axb6 {[%clk 0:01:16]} 23. Re3 {[%clk 0:00:43]}  fxe5 {[%clk 0:01:15]} 24. fxe5 {[%clk 0:00:43]}  Be4 {[%clk 0:01:10]} 25. Qg3 {[%clk 0:00:32]}  Bxf3 {[%clk 0:01:08]} 26. gxf3 {[%clk 0:00:33]}  Rf5 {[%clk 0:01:05]} 27. Rae1 {[%clk 0:00:32]}  Re6 {[%clk 0:00:59]} 28. Kh2 {[%clk 0:00:24]}  Qd2+ {[%clk 0:00:51]} 29. R1e2 {[%clk 0:00:23]}  Qd1 {[%clk 0:00:49]} 30. Qg4 {[%clk 0:00:23]}  Rg6 {[%clk 0:00:46]} 31. Re1 {[%clk 0:00:15]}  Qxe1 {[%clk 0:00:30]} 32. Rxe1 {[%clk 0:00:16]}  Rxg4 {[%clk 0:00:30]} 33. fxg4 {[%clk 0:00:17]}  Rf2+ {[%clk 0:00:30]} 34. Kg3 {[%clk 0:00:17]}  Rxa2 {[%clk 0:00:29]} 35. e6 {[%clk 0:00:17]}  Kf8 {[%clk 0:00:29]} 36. Kf4 {[%clk 0:00:18]}  Ke7 {[%clk 0:00:29]} 37. Re4 {[%clk 0:00:15]}  b5 {[%clk 0:00:28]} 38. Re5 {[%clk 0:00:15]}  c6 {[%clk 0:00:27]} 39. Rc5 {[%clk 0:00:15]}  Kd6 {[%clk 0:00:25]} 40. Re5 {[%clk 0:00:11]}  Rf2+ {[%clk 0:00:23]} 41. Kg5 {[%clk 0:00:11]}  h6+ {[%clk 0:00:17]} 42. Kh4 {[%clk 0:00:06]}  Rf8 {[%clk 0:00:12]} 43. Re4 {[%clk 0:00:02]}  Re8 {[%clk 0:00:11]} 44. g5 {[%clk 0:00:03]}  Rxe6 {[%clk 0:00:10]} 45. Rd4+ {[%clk 0:00:03]}  Kc7 {[%clk 0:00:08]} 46. gxh6 {[%clk 0:00:04]}  Rxh6+ {[%clk 0:00:07]} 47. Kg4 {[%clk 0:00:05]}  c5 {[%clk 0:00:07]} 48. Rd5 {[%clk 0:00:05]}  Kc6 {[%clk 0:00:07]} 49. Rg5 {[%clk 0:00:06]}  g6 {[%clk 0:00:07]} 50. h4 {[%clk 0:00:05]}  b4 {[%clk 0:00:07]} 51. Kf4 {[%clk 0:00:05]}  Rxh4+ {[%clk 0:00:05]} 52. Ke3 {[%clk 0:00:05]}  Rh3+ {[%clk 0:00:06]} 53. Kd2 {[%clk 0:00:06]}  Rxc3 {[%clk 0:00:06]} 54. Rxg6+ {[%clk 0:00:06]}  Kb5 {[%clk 0:00:07]} 55. Rg8 {[%clk 0:00:07]}  Ka4 {[%clk 0:00:07]} 56. Kd1 {[%clk 0:00:07]}  Kb3 {[%clk 0:00:07]} 57. Ra8 {[%clk 0:00:07]}  Rd3+ {[%clk 0:00:07]} 58. Kc1 {[%clk 0:00:07]}  c3 {[%clk 0:00:07]} 59. Ra5 {[%clk 0:00:08]}  c4 {[%clk 0:00:07]} 60. Rf5 {[%clk 0:00:07]}  Rh3 {[%clk 0:00:07]} 61. Rf2 {[%clk 0:00:07]}  Rh1+ {[%clk 0:00:08]} 62. Rf1 {[%clk 0:00:07]}  Rxf1# {[%clk 0:00:08]} 0-1


[Site "https://www.chess.com"]

[Event "Titled Tuesday Blitz December 27 Late 2022"]
[White "Yanchenko, Roman"]
[Black "Salman, Pavel"]
[WhiteFideId "4137329"]
[BlackFideId "24153753"]
[WhiteElo "2466"]
[BlackElo "2287"]
[Result "1-0"]
[Round "01"]
[TimeControl "180+2"]
[Date "2022.12.27"]
[WhiteClock "0:01:22"]
[BlackClock "0:00:12"]

1. d4 {[%clk 0:02:52]}  Nf6 {[%clk 0:02:59]} 2. c4 {[%clk 0:02:52]}  c5 {[%clk 0:03:00]} 3. Nf3 {[%clk 0:02:52]}  cxd4 {[%clk 0:02:59]} 4. Nxd4 {[%clk 0:02:53]}  b6 {[%clk 0:03:00]} 5. f3 {[%clk 0:02:49]}  Bb7 {[%clk 0:03:00]} 6. e4 {[%clk 0:02:49]}  d6 {[%clk 0:03:01]} 7. Be2 {[%clk 0:02:49]}  e6 {[%clk 0:03:00]} 8. O-O {[%clk 0:02:49]}  Be7 {[%clk 0:03:01]} 9. Be3 {[%clk 0:02:50]}  Qc7 {[%clk 0:03:01]} 10. b3 {[%clk 0:02:49]}  a6 {[%clk 0:03:01]} 11. Qd2 {[%clk 0:02:49]}  O-O {[%clk 0:03:01]} 12. Rd1 {[%clk 0:02:49]}  Nbd7 {[%clk 0:03:00]} 13. Nc3 {[%clk 0:02:49]}  Rac8 {[%clk 0:03:00]} 14. Rac1 {[%clk 0:02:49]}  Qb8 {[%clk 0:03:00]} 15. Bf1 {[%clk 0:02:48]}  Bd8 {[%clk 0:03:00]} 16. Qf2 {[%clk 0:02:48]}  Bc7 {[%clk 0:03:00]} 17. Qh4 {[%clk 0:02:48]}  Ne5 {[%clk 0:02:56]} 18. Bg5 {[%clk 0:02:40]}  Ng6 {[%clk 0:02:49]} 19. Qh3 {[%clk 0:02:34]}  Nd7 {[%clk 0:02:39]} 20. Nce2 {[%clk 0:02:19]}  Rce8 {[%clk 0:02:16]} 21. Ng3 {[%clk 0:02:18]}  d5 {[%clk 0:00:44]} 22. cxd5 {[%clk 0:02:14]}  Bf4 {[%clk 0:00:32]} 23. dxe6 {[%clk 0:01:42]}  Bxg5 {[%clk 0:00:32]} 24. exd7 {[%clk 0:01:42]}  Rd8 {[%clk 0:00:32]} 25. Nc6 {[%clk 0:01:38]}  Bxc6 {[%clk 0:00:19]} 26. Rxc6 {[%clk 0:01:39]}  h6 {[%clk 0:00:17]} 27. Nh5 {[%clk 0:01:24]}  Ne5 {[%clk 0:00:15]} 28. Rcd6 {[%clk 0:01:24]}  Be7 {[%clk 0:00:14]} 29. R6d5 {[%clk 0:01:23]}  Bc5+ {[%clk 0:00:14]} 30. Kh1 {[%clk 0:01:23]}  Qc7 {[%clk 0:00:13]} 31. Qg3 {[%clk 0:01:22]}  g5 {[%clk 0:00:12]} 32. Qxe5 {[%clk 0:01:22]} 1-0


[Site "https://www.chess.com"]

[Event "Titled Tuesday Blitz December 27 Late 2022"]
[White "Zakarian, David"]
[Black "Putnam, Liam"]
[WhiteFideId "13301276"]
[BlackFideId "30938279"]
[WhiteElo "2306"]
[BlackElo "2285"]
[Result "0-1"]
[Round "01"]
[TimeControl "180+2"]
[Date "2022.12.27"]
[WhiteClock "0:01:08"]
[BlackClock "0:00:32"]

1. d4 {[%clk 0:03:00]}  Nf6 {[%clk 0:02:59]} 2. c4 {[%clk 0:02:59]}  e6 {[%clk 0:02:59]} 3. Nf3 {[%clk 0:02:57]}  Bb4+ {[%clk 0:02:58]} 4. Nbd2 {[%clk 0:02:57]}  O-O {[%clk 0:02:57]} 5. a3 {[%clk 0:02:57]}  Bxd2+ {[%clk 0:02:57]} 6. Bxd2 {[%clk 0:02:58]}  b6 {[%clk 0:02:58]} 7. Bg5 {[%clk 0:02:58]}  Bb7 {[%clk 0:02:58]} 8. e3 {[%clk 0:02:59]}  d6 {[%clk 0:02:59]} 9. Bd3 {[%clk 0:02:58]}  Nbd7 {[%clk 0:02:59]} 10. O-O {[%clk 0:02:58]}  h6 {[%clk 0:02:59]} 11. Bh4 {[%clk 0:02:58]}  Qe7 {[%clk 0:03:00]} 12. Re1 {[%clk 0:02:57]}  e5 {[%clk 0:02:57]} 13. e4 {[%clk 0:02:54]}  c5 {[%clk 0:02:49]} 14. d5 {[%clk 0:02:53]}  g5 {[%clk 0:02:38]} 15. Bg3 {[%clk 0:02:53]}  Kg7 {[%clk 0:02:38]} 16. b4 {[%clk 0:02:50]}  a5 {[%clk 0:02:36]} 17. b5 {[%clk 0:02:49]}  Rh8 {[%clk 0:02:18]} 18. a4 {[%clk 0:02:45]}  Nf8 {[%clk 0:02:11]} 19. Be2 {[%clk 0:02:39]}  Ng6 {[%clk 0:02:10]} 20. Nd2 {[%clk 0:02:38]}  Bc8 {[%clk 0:01:59]} 21. f3 {[%clk 0:02:29]}  Nh5 {[%clk 0:01:53]} 22. Bf2 {[%clk 0:02:25]}  Bd7 {[%clk 0:01:52]} 23. Nf1 {[%clk 0:02:24]}  Raf8 {[%clk 0:01:51]} 24. Ng3 {[%clk 0:02:21]}  Nxg3 {[%clk 0:01:51]} 25. Bxg3 {[%clk 0:02:18]}  h5 {[%clk 0:01:44]} 26. Qd2 {[%clk 0:02:12]}  h4 {[%clk 0:01:37]} 27. Bf2 {[%clk 0:02:13]}  Nf4 {[%clk 0:01:37]} 28. Bf1 {[%clk 0:02:13]}  Qf6 {[%clk 0:01:33]} 29. Be3 {[%clk 0:02:02]}  Qg6 {[%clk 0:01:28]} 30. h3 {[%clk 0:01:52]}  f5 {[%clk 0:01:16]} 31. exf5 {[%clk 0:01:51]}  Bxf5 {[%clk 0:01:17]} 32. Bxf4 {[%clk 0:01:49]}  gxf4 {[%clk 0:01:16]} 33. Rad1 {[%clk 0:01:48]}  Kf7 {[%clk 0:01:10]} 34. Bd3 {[%clk 0:01:46]}  Rhg8 {[%clk 0:01:03]} 35. Bxf5 {[%clk 0:01:45]}  Qxf5 {[%clk 0:01:04]} 36. Kh1 {[%clk 0:01:45]}  Rg3 {[%clk 0:01:04]} 37. Re2 {[%clk 0:01:36]}  Rfg8 {[%clk 0:00:49]} 38. Qd3 {[%clk 0:01:37]}  Qh5 {[%clk 0:00:36]} 39. Rf1 {[%clk 0:01:19]}  Kf6 {[%clk 0:00:35]} 40. Re4 {[%clk 0:01:12]}  Qf5 {[%clk 0:00:33]} 41. Qe2 {[%clk 0:01:07]}  Rxh3+ {[%clk 0:00:31]} 42. gxh3 {[%clk 0:01:08]}  Qxh3+ {[%clk 0:00:32]} 0-1


[Site "https://www.chess.com"]

[Event "Titled Tuesday Blitz December 27 Late 2022"]
[White "Zakhartsov, Vladimir"]
[Black "Cruz, William Ferreira Da"]
[WhiteFideId "4145097"]
[BlackFideId "2118050"]
[WhiteElo "2552"]
[BlackElo "2216"]
[Result "1-0"]
[Round "01"]
[TimeControl "180+2"]
[Date "2022.12.27"]
[WhiteClock "0:00:32"]
[BlackClock "0:00:02"]

1. c4 {[%clk 0:03:00]}  Nf6 {[%clk 0:02:58]} 2. Nc3 {[%clk 0:03:00]}  g6 {[%clk 0:02:57]} 3. d4 {[%clk 0:03:00]}  Bg7 {[%clk 0:02:57]} 4. e4 {[%clk 0:03:00]}  d6 {[%clk 0:02:57]} 5. Be2 {[%clk 0:03:00]}  O-O {[%clk 0:02:57]} 6. Be3 {[%clk 0:03:00]}  e5 {[%clk 0:02:34]} 7. d5 {[%clk 0:02:55]}  Nbd7 {[%clk 0:02:28]} 8. Nf3 {[%clk 0:02:44]}  Ng4 {[%clk 0:02:20]} 9. Bg5 {[%clk 0:02:43]}  f6 {[%clk 0:02:17]} 10. Bd2 {[%clk 0:02:42]}  Nh6 {[%clk 0:02:09]} 11. O-O {[%clk 0:02:37]}  Nf7 {[%clk 0:02:00]} 12. Ne1 {[%clk 0:02:34]}  f5 {[%clk 0:01:55]} 13. Nd3 {[%clk 0:02:31]}  Nc5 {[%clk 0:01:51]} 14. Nxc5 {[%clk 0:02:20]}  dxc5 {[%clk 0:01:51]} 15. a3 {[%clk 0:02:19]}  a5 {[%clk 0:01:27]} 16. Rb1 {[%clk 0:02:16]}  Nd6 {[%clk 0:01:24]} 17. exf5 {[%clk 0:02:13]}  Bxf5 {[%clk 0:01:08]} 18. Rc1 {[%clk 0:02:13]}  e4 {[%clk 0:01:04]} 19. Be3 {[%clk 0:02:12]}  b6 {[%clk 0:00:59]} 20. Qd2 {[%clk 0:02:12]}  Qf6 {[%clk 0:00:52]} 21. Rfe1 {[%clk 0:02:04]}  Rae8 {[%clk 0:00:51]} 22. Bf1 {[%clk 0:02:04]}  h5 {[%clk 0:00:36]} 23. b3 {[%clk 0:01:58]}  h4 {[%clk 0:00:33]} 24. Bg5 {[%clk 0:01:55]}  Qd4 {[%clk 0:00:28]} 25. Ne2 {[%clk 0:01:52]}  Qxd2 {[%clk 0:00:25]} 26. Bxd2 {[%clk 0:01:53]}  Bb2 {[%clk 0:00:21]} 27. Rc2 {[%clk 0:01:38]}  Bxa3 {[%clk 0:00:20]} 28. Be3 {[%clk 0:01:25]}  Bb4 {[%clk 0:00:19]} 29. Rd1 {[%clk 0:01:20]}  Bg4 {[%clk 0:00:18]} 30. h3 {[%clk 0:01:19]}  Bh5 {[%clk 0:00:16]} 31. Ra1 {[%clk 0:01:13]}  Nf5 {[%clk 0:00:15]} 32. Bg5 {[%clk 0:01:05]}  Nd4 {[%clk 0:00:14]} 33. Nxd4 {[%clk 0:00:44]}  cxd4 {[%clk 0:00:15]} 34. Bxh4 {[%clk 0:00:45]}  d3 {[%clk 0:00:13]} 35. Rca2 {[%clk 0:00:46]}  e3 {[%clk 0:00:09]} 36. fxe3 {[%clk 0:00:45]}  Bc3 {[%clk 0:00:06]} 37. Rb1 {[%clk 0:00:41]}  g5 {[%clk 0:00:05]} 38. Bxg5 {[%clk 0:00:40]}  d2 {[%clk 0:00:05]} 39. g4 {[%clk 0:00:38]}  Bg6 {[%clk 0:00:05]} 40. Rd1 {[%clk 0:00:39]}  Be4 {[%clk 0:00:04]} 41. Bf4 {[%clk 0:00:34]}  Bf3 {[%clk 0:00:04]} 42. Rdxd2 {[%clk 0:00:34]}  Bxd2 {[%clk 0:00:04]} 43. Rxd2 {[%clk 0:00:35]}  Be4 {[%clk 0:00:03]} 44. Bxc7 {[%clk 0:00:33]}  Rf3 {[%clk 0:00:02]} 45. Bf4 {[%clk 0:00:32]} 1-0


[Site "https://www.chess.com"]